fUSD/lending_fUSD_20240117
["ID","MTS","AMOUNT","RATE_DAILY","PERIOD"]
[311891687,1705489888169,-1961.2,0.00023287,2]
[311891688,1705489888181,-924.92,0.00023287,2]
[311891689,1705489888192,-1342.87,0.00023287,2]
[311891690,1705489888203,-500.0,0.00023287,2]
[311891691,1705489888213,-256.14243684,0.00023287,2]
[311891692,1705489888223,-516.6,0.00023287,2]
[311891693,1705489888232,-1214.22,0.00023287,2]
[311891694,1705489888242,-966.0,0.00023287,2]
[311891695,1705489888252,-872.31,0.00023287,2]
[311891696,1705489888261,-500.0,0.00023287,2]
[311891697,1705489888270,-500.0,0.00023287,2]
[311891698,1705489888280,-748.35,0.00023287,2]
[311891699,1705489888290,-500.0,0.00023287,2]
[311891700,1705489888299,-500.0,0.00023287,2]
[311891701,1705489888309,-937.16,0.00023287,2]
[311891702,1705489888318,-500.0,0.00023287,2]
[311891703,1705489888328,-799.25,0.00023287,2]
[311891704,1705489888338,-628.65,0.00023287,2]
[311891705,1705489888350,-500.0,0.00023287,2]
[311891706,1705489888359,-616.54,0.00023287,2]
[311891707,1705489888369,-500.0,0.00023287,2]
[311891708,1705489888379,-717.16,0.00023287,2]
[311891709,1705489888388,-500.0,0.00023287,2]
[311891710,1705489888398,-500.0,0.00023287,2]
[311891711,1705489888407,-500.0,0.00023287,2]
[311891712,1705489888416,-707.9,0.00023287,2]
[311891713,1705489888427,-2202.67,0.00023287,2]
[311891714,1705489888437,-994.43,0.00023287,2]
[311891715,1705489888446,-500.0,0.00023287,2]
[311891716,1705489888455,-500.0,0.00023287,2]
[311891717,1705489888465,-1314.57,0.00023287,2]
[311891718,1705489888474,-700.88,0.00023287,2]
[311891719,1705489888483,-747.11,0.00023287,2]
[311891720,1705489888491,-1247.23,0.00023287,2]
[311891721,1705489888500,-500.0,0.00023287,2]
[311891722,1705489888509,-500.0,0.00023287,2]
[311891723,1705489888519,-500.0,0.00023287,2]
[311891724,1705489888528,-1107.65,0.00023287,2]
[311891725,1705489888537,-940.75,0.00023287,2]
[311891726,1705489888546,-1113.86,0.00023287,2]
[311891727,1705489888555,-500.0,0.00023287,2]
[311891728,1705489888564,-500.0,0.00023287,2]
[311891729,1705489888573,-1068.04,0.00023287,2]
[311891730,1705489888582,-500.0,0.00023287,2]
[311891731,1705489888591,-591.69,0.00023287,2]
[311891732,1705489888601,-514.52,0.00023287,2]
[311891733,1705489888610,-1801.96,0.00023287,2]
[311891734,1705489888620,-500.0,0.00023287,2]
[311891735,1705489888629,-1119.07,0.00023287,2]
[311891736,1705489888639,-2470.72,0.00023287,2]
[311891737,1705489888648,-500.0,0.00023287,2]
[311891738,1705489888658,-500.0,0.00023287,2]
[311891739,1705489888668,-500.0,0.00023287,2]
[311891740,1705489888677,-524.15,0.00023287,2]
[311891741,1705489888686,-904.79,0.00023287,2]
[311891742,1705489888695,-500.0,0.00023287,2]
[311891743,1705489888704,-510.6,0.00023287,2]
[311891744,1705489888713,-576.31,0.00023287,2]
[311891745,1705489888722,-1190.34,0.00023287,2]
[311891746,1705489888732,-500.0,0.00023287,2]
[311891747,1705489888741,-764.68,0.00023287,2]
[311891748,1705489888750,-1052.25,0.00023287,2]
[311891749,1705489888760,-636.43,0.00023287,2]
[311891750,1705489888770,-500.0,0.00023287,2]
[311891751,1705489888780,-670.55,0.00023287,2]
[311891752,1705489888790,-1264.48,0.00023287,2]
[311891753,1705489888799,-500.0,0.00023287,2]
[311891754,1705489888808,-814.85,0.00023287,2]
[311891755,1705489888819,-500.0,0.00023287,2]
[311891756,1705489888829,-544.71,0.00023287,2]
[311891757,1705489888839,-500.0,0.00023287,2]
[311891758,1705489888848,-1198.01,0.00023287,2]
[311891759,1705489888858,-1206.43,0.00023287,2]
[311891760,1705489888867,-500.0,0.00023287,2]
[311891761,1705489888876,-500.0,0.00023287,2]
[311891762,1705489888885,-1043.84,0.00023287,2]
[311891763,1705489888894,-1304.35,0.00023287,2]
[311891764,1705489888904,-1069.27,0.00023287,2]
[311891765,1705489888914,-1087.69,0.00023287,2]
[311891766,1705489888923,-962.26,0.00023287,2]
[311891767,1705489888932,-500.0,0.00023287,2]
[311891768,1705489888941,-500.0,0.00023287,2]
[311891769,1705489888951,-516.2,0.00023287,2]
[311891770,1705489888960,-1632.67,0.00023287,2]
[311891771,1705489888969,-500.0,0.00023287,2]
[311891772,1705489888979,-500.0,0.00023287,2]
[311891773,1705489888988,-939.16,0.00023287,2]
[311891774,1705489888997,-918.4,0.00023287,2]
[311891775,1705489889007,-995.2,0.00023287,2]
[311891776,1705489889016,-500.0,0.00023287,2]
[311891777,1705489889026,-1008.57,0.00023287,2]
[311891778,1705489889036,-500.0,0.00023287,2]
[311891779,1705489889046,-500.0,0.00023287,2]
[311891780,1705489889055,-1029.51,0.00023287,2]
[311891781,1705489889065,-500.0,0.00023287,2]
[311891782,1705489889074,-500.0,0.00023287,2]
[311891783,1705489889083,-500.0,0.00023287,2]
[311891784,1705489889093,-1060.73,0.00023287,2]
[311891785,1705489889102,-636.13,0.00023287,2]
[311891786,1705489889111,-500.0,0.00023287,2]
[311891787,1705489889120,-500.0,0.00023287,2]
[311891788,1705489889130,-500.0,0.00023287,2]
[311891789,1705489889139,-702.02,0.00023287,2]
[311891790,1705489889148,-594.97,0.00023287,2]
[311891791,1705489889158,-701.5,0.00023287,2]
[311891792,1705489889167,-1038.32,0.00023287,2]
[311891793,1705489889176,-572.4,0.00023287,2]
[311891794,1705489889185,-3550.63,0.00023287,2]
[311891795,1705489889194,-982.96,0.00023287,2]
[311891796,1705489889203,-500.0,0.00023287,2]
[311891797,1705489889212,-500.0,0.00023287,2]
[311891798,1705489889222,-579.93,0.00023287,2]
[311891799,1705489889332,-924.4,0.00023287,2]
[311891800,1705489889341,-500.0,0.00023287,2]
[311891801,1705489889353,-578.12,0.00023287,2]
[311891802,1705489889362,-500.0,0.00023287,2]
[311891803,1705489889371,-885.89,0.00023287,2]
[311891804,1705489889380,-694.35,0.00023287,2]
[311891805,1705489889390,-711.56,0.00023287,2]
[311891806,1705489889399,-1404.62,0.00023287,2]
[311891807,1705489889409,-500.0,0.00023287,2]
[311891808,1705489889418,-1235.63,0.00023287,2]
[311891809,1705489889429,-500.0,0.00023287,2]
[311891810,1705489889440,-635.43,0.00023287,2]
[311891811,1705489889448,-500.0,0.00023287,2]
[311891812,1705489889458,-500.0,0.00023287,2]
[311891813,1705489889467,-1174.22,0.00023287,2]
[311891814,1705489889475,-915.13,0.00023287,2]
[311891815,1705489889485,-701.7,0.00023287,2]
[311891816,1705489889494,-500.0,0.00023287,2]
[311891817,1705489889503,-500.0,0.00023287,2]
[311891818,1705489889511,-500.0,0.00023287,2]
[311891819,1705489889521,-2849.83,0.00023287,2]
[311891820,1705489889530,-544.59,0.00023287,2]
[311891821,1705489889539,-1964.36,0.00023287,2]
[311891822,1705489889549,-500.0,0.00023287,2]
[311891823,1705489889559,-2896.5,0.00023287,2]
[311891824,1705489889568,-1968.52,0.00023287,2]
[311891825,1705489889577,-683.02,0.00023287,2]
[311891826,1705489889586,-1342.01,0.00023287,2]
[311891827,1705489889594,-675.72,0.00023287,2]
[311891828,1705489889603,-500.0,0.00023287,2]
[311891829,1705489889612,-1029.41,0.00023287,2]
[311891830,1705489889621,-1548.58,0.00023287,2]
[311891831,1705489889630,-500.0,0.00023287,2]
[311891832,1705489889639,-500.0,0.00023287,2]
[311891833,1705489889648,-655.65,0.00023287,2]
[311891834,1705489889657,-3528.9,0.00023287,2]
[311891835,1705489889666,-500.0,0.00023287,2]
[311891836,1705489889675,-550.17,0.00023287,2]
[311891837,1705489889684,-530.48,0.00023287,2]
[311891838,1705489889693,-1274.2,0.00023287,2]
[311891839,1705489889702,-1478.93,0.00023287,2]
[311891840,1705489889711,-500.0,0.00023287,2]
[311891841,1705489889720,-826.31,0.00023287,2]
[311891842,1705489889729,-710.03,0.00023287,2]
[311891843,1705489889738,-8305.92,0.00023287,2]
[311891844,1705489889747,-500.0,0.00023287,2]
[311891845,1705489889756,-3468.63,0.00023287,2]
[311891846,1705489889765,-688.83,0.00023287,2]
[311891847,1705489889774,-13840.01,0.00023287,2]
[311891848,1705489889783,-566.04,0.00023287,2]
[311891849,1705489889792,-598.69,0.00023287,2]
[311891850,1705489889801,-330.45,0.00023287,2]
[311891851,1705489889810,-611.72,0.00023287,2]
[311891852,1705489889819,-678.15,0.00023287,2]
[311891853,1705489889828,-500.0,0.00023287,2]
[311891854,1705489889838,-6007.21,0.00023287,2]
[311891855,1705489889846,-11260.59,0.00023287,2]
[311891856,1705489889855,-576.52,0.00023287,2]
[311891857,1705489889864,-537.26,0.00023287,2]
[311891858,1705489889873,-839.94,0.00023287,2]
[311891859,1705489889882,-9043.74,0.00023287,2]
[311891860,1705489889891,-500.0,0.00023287,2]
[311891861,1705489889900,-500.0,0.00023287,2]
[311891862,1705489889909,-2426.8,0.00023287,2]
[311891863,1705489889918,-2267.53,0.00023287,2]
[311891864,1705489889927,-785.85,0.00023287,2]
[311891865,1705489889937,-500.0,0.00023287,2]
[311891866,1705489889945,-1153.46,0.00023287,2]
[311891867,1705489889955,-5019.46,0.00023287,2]
[311891868,1705489889964,-14230.88,0.00023287,2]
[311891869,1705489889973,-585.41,0.00023287,2]
[311891870,1705489889982,-1948.18,0.00023287,2]
[311891871,1705489889991,-807.32,0.00023287,2]
[311891872,1705489890000,-500.0,0.00023287,2]
[311891873,1705489890009,-500.0,0.00023287,2]
[311891874,1705489890018,-1841.76,0.00023287,2]
[311891875,1705489890028,-541.68,0.00023287,2]
[311891876,1705489890037,-648.92,0.00023287,2]
[311891877,1705489890046,-1313.51,0.00023287,2]
[311891878,1705489890056,-7863.6,0.00023287,2]
[311891879,1705489890066,-669.79,0.00023287,2]
[311891880,1705489890075,-1235.43,0.00023287,2]
[311891881,1705489890085,-1875.02,0.00023287,2]
[311891882,1705489890095,-697.24,0.00023287,2]
[311891883,1705489890105,-500.0,0.00023287,2]
[311891884,1705489890115,-886.27,0.00023287,2]
[311891885,1705489890124,-861.27,0.00023287,2]
[311891886,1705489890134,-863.63,0.00023287,2]
[311891887,1705489890145,-2235.54,0.00023287,2]
[311891888,1705489890155,-6074.67,0.00023287,2]
[311891889,1705489890165,-524.02,0.00023287,2]
[311891890,1705489890175,-500.0,0.00023287,2]
[311891891,1705489890185,-500.0,0.00023287,2]
[311891892,1705489890195,-4516.86,0.00023287,2]
[311891893,1705489890205,-500.0,0.00023287,2]
[311891894,1705489890215,-3841.76,0.00023287,2]
[311891895,1705489890225,-500.0,0.00023287,2]
[311891896,1705489890235,-974.16,0.00023287,2]
[311891897,1705489890245,-4150.83,0.00023287,2]
[311891898,1705489890255,-4448.34,0.00023287,2]
[311891899,1705489890265,-500.0,0.00023287,2]
[311891900,1705489890275,-500.0,0.00023287,2]
[311891901,1705489890285,-500.0,0.00023287,2]
[311891902,1705489890295,-533.91,0.00023287,2]
[311891903,1705489890306,-500.0,0.00023287,2]
[311891904,1705489890316,-566.02,0.00023287,2]
[311891905,1705489890328,-2935.1,0.00023287,2]
[311891906,1705489890338,-1309.04,0.00023287,2]
[311891907,1705489890351,-500.0,0.00023287,2]
[311891908,1705489890361,-1965.44,0.00023287,2]
[311891909,1705489890370,-992.22,0.00023287,2]
[311891910,1705489890380,-984.15,0.00023287,2]
[311891911,1705489890390,-500.0,0.00023287,2]
[311891912,1705489890400,-500.0,0.00023287,2]
[311891913,1705489890410,-1696.71,0.00023287,2]
[311891914,1705489890420,-32469.27,0.00023287,2]
[311891915,1705489890430,-500.0,0.00023287,2]
[311891916,1705489890441,-573.08,0.00023287,2]
[311891917,1705489890451,-500.0,0.00023287,2]
[311891918,1705489890461,-661.33,0.00023287,2]
[311891919,1705489890471,-615.65,0.00023287,2]
[311891920,1705489890481,-649.27,0.00023287,2]
[311891921,1705489890491,-2575.9,0.00023287,2]
[311891922,1705489890501,-1939.24,0.00023287,2]
[311891923,1705489890511,-3511.42,0.00023287,2]
[311891924,1705489890522,-500.0,0.00023287,2]
[311891925,1705489890532,-500.0,0.00023287,2]
[311891926,1705489890545,-500.0,0.00023287,2]
[311891927,1705489890555,-500.0,0.00023287,2]
[311891928,1705489890565,-500.0,0.00023287,2]
[311891929,1705489890575,-1929.09,0.00023287,2]
[311891930,1705489890585,-500.0,0.00023287,2]
[311891931,1705489890595,-1412.27,0.00023287,2]
[311891932,1705489890605,-2389.77,0.00023287,2]
[311891933,1705489890614,-2475.33,0.00023287,2]
[311891934,1705489890625,-4575.47,0.00023287,2]
[311891935,1705489890635,-661.55,0.00023287,2]
[311891936,1705489890645,-1653.65,0.00023287,2]
[311891937,1705489890655,-500.0,0.00023287,2]
[311891938,1705489890666,-14816.63,0.00023287,2]
[311891939,1705489890675,-1732.77,0.00023287,2]
[311891940,1705489890685,-500.0,0.00023287,2]
[311891941,1705489890695,-834.9,0.00023287,2]
[311891942,1705489890705,-8016.45,0.00023287,2]
[311891943,1705489890715,-500.0,0.00023287,2]
[311891944,1705489890725,-1784.49,0.00023287,2]
[311891945,1705489890736,-1352.99,0.00023287,2]
[311891946,1705489890746,-558.85,0.00023287,2]
[311891947,1705489890756,-500.0,0.00023287,2]
[311891948,1705489890766,-678.67,0.00023287,2]
[311891949,1705489890777,-1038.1,0.00023287,2]
[311891950,1705489890788,-9036.89,0.00023287,2]
[311891951,1705489890799,-815.12,0.00023287,2]
[311891952,1705489890809,-500.0,0.00023287,2]
[311891953,1705489890820,-1774.09,0.00023287,2]
[311891954,1705489890830,-502.32,0.00023287,2]
[311891955,1705489890841,-2414.66,0.00023287,2]
[311891956,1705489890851,-506.26803143,0.00023287,2]
[311891957,1705489890862,-5111.21,0.00023287,2]
[311891958,1705489890872,-500.0,0.00023287,2]
[311891959,1705489890882,-460.91659282,0.00023287,2]
[311891960,1705489890892,-1734.88,0.00023287,2]
[311891961,1705489890903,-855.29,0.00023287,2]
[311891962,1705489890913,-500.0,0.00023287,2]
[311891963,1705489890923,-500.0,0.00023287,2]
[311891964,1705489890934,-2245.54,0.00023287,2]
[311891965,1705489890944,-1744.59,0.00023287,2]
[311891966,1705489890954,-500.0,0.00023287,2]
[311891967,1705489890965,-1274.36,0.00023287,2]
[311891968,1705489890976,-706.05,0.00023287,2]
[311891969,1705489890988,-500.0,0.00023287,2]
[311891970,1705489891000,-1510.08,0.00023287,2]
[311891971,1705489891012,-500.0,0.00023287,2]
[311891972,1705489891026,-887.83,0.00023287,2]
[311891973,1705489891039,-500.0,0.00023287,2]
[311891974,1705489891049,-1357.1,0.00023287,2]
[311891975,1705489891060,-1827.37,0.00023287,2]
[311891976,1705489891070,-1435.95,0.00023287,2]
[311891977,1705489891081,-584.24,0.00023287,2]
[311891978,1705489891092,-663.37,0.00023287,2]
[311891979,1705489891102,-779.77,0.00023287,2]
[311891980,1705489891112,-597.44,0.00023287,2]
[311891981,1705489891123,-4561.81,0.00023287,2]
[311891982,1705489891133,-239.10832333,0.00023287,2]
[311891983,1705489891143,-500.0,0.00023287,2]
[311891984,1705489891154,-3629.95,0.00023287,2]
[311891985,1705489891165,-500.0,0.00023287,2]
[311891986,1705489891175,-916.35,0.00023287,2]
[311891987,1705489891190,-992.47,0.00023287,2]
[311891988,1705489891209,-1883.37,0.00023287,2]
[311891989,1705489891225,-1639.63,0.00023287,2]
[311891990,1705489891241,-1741.77,0.00023287,2]
[311891991,1705489891258,-458.18917195,0.00023287,2]
[311891992,1705489891275,-3959.88,0.00023287,2]
[311891993,1705489891288,-820.93,0.00023287,2]
[311891994,1705489891305,-7153.04,0.00023287,2]
[311891995,1705489891323,-500.0,0.00023287,2]
[311891996,1705489891339,-2360.61,0.00023287,2]
[311891997,1705489891360,-782.9,0.00023287,2]
[311891998,1705489891377,-806.13,0.00023287,2]
[311891999,1705489891394,-500.0,0.00023287,2]
[311892000,1705489891411,-500.0,0.00023287,2]
[311892001,1705489891431,-1392.64,0.00023287,2]
[311892002,1705489891446,-507.5,0.00023287,2]
[311892003,1705489891459,-1083.43,0.00023287,2]
[311892004,1705489891475,-500.0,0.00023287,2]
[311892005,1705489891491,-778.97,0.00023287,2]
[311892006,1705489891507,-909.26,0.00023287,2]
[311892007,1705489891551,-979.46,0.00023287,2]
[311892008,1705489891566,-3419.57,0.00023287,2]
[311892009,1705489891582,-1060.67,0.00023287,2]
[311892010,1705489891596,-1861.48,0.00023287,2]
[311892011,1705489891610,-3566.82,0.00023287,5]
[311892012,1705489891625,-2842.76,0.00023287,2]
[311892013,1705489891640,-1210.04,0.00023287,2]
[311892014,1705489891654,-1906.25,0.00023287,2]
[311892015,1705489891668,-1159.83,0.00023287,2]
[311892016,1705489891683,-1195.39,0.00023287,2]
[311892017,1705489891697,-5873.11,0.00023287,2]
[311892018,1705489891710,-500.0,0.00023287,2]
[311892019,1705489891724,-500.0,0.00023287,2]
[311892020,1705489891738,-1059.12,0.00023287,2]
[311892021,1705489891752,-500.0,0.00023287,2]
[311892022,1705489891766,-500.0,0.00023287,2]
[311892023,1705489891782,-2140.36,0.00023287,2]
[311892024,1705489891797,-3914.25,0.00023287,2]
[311892025,1705489891810,-1418.66,0.00023287,2]
[311892026,1705489891824,-1392.42,0.00023287,2]
[311892027,1705489891838,-500.0,0.00023287,2]
[311892028,1705489891852,-1713.01,0.00023287,2]
[311892029,1705489891866,-500.0,0.00023287,2]
[311892030,1705489891880,-778.99,0.00023287,2]
[311892031,1705489891893,-2146.35,0.00023287,2]
[311892032,1705489891908,-500.0,0.00023287,2]
[311892033,1705489891922,-2303.4,0.00023287,2]
[311892034,1705489891936,-500.0,0.00023287,2]
[311892035,1705489891950,-500.0,0.00023287,2]
[311892036,1705489891965,-2140.57,0.00023287,2]
[311892037,1705489891979,-4765.45,0.00023287,2]
[311892038,1705489891993,-1461.06,0.00023287,2]
[311892039,1705489892008,-500.0,0.00023287,2]
[311892040,1705489892022,-500.0,0.00023287,2]
[311892041,1705489892036,-1784.9,0.00023287,2]
[311892042,1705489892051,-539.85,0.00023287,2]
[311892043,1705489892066,-672.09,0.00023287,2]
[311892044,1705489892080,-1509.91,0.00023287,2]
[311892045,1705489892095,-27781.74,0.00023287,2]
[311892046,1705489892109,-534.01,0.00023287,2]
[311892047,1705489892122,-881.13,0.00023287,2]
[311892048,1705489892136,-2094.77,0.00023287,2]
[311892049,1705489892149,-1969.05,0.00023287,2]
[311892050,1705489892162,-591.22,0.00023287,2]
[311892051,1705489892177,-1724.25,0.00023287,2]
[311892052,1705489892191,-500.0,0.00023287,2]
[311892053,1705489892204,-2966.94,0.00023287,2]
[311892054,1705489892218,-500.0,0.00023287,2]
[311892055,1705489892232,-500.0,0.00023287,2]
[311892056,1705489892246,-1073.7,0.00023287,2]
[311892057,1705489892260,-856.24,0.00023287,2]
[311892058,1705489892274,-2716.01,0.00023287,2]
[311892059,1705489892290,-3130.06,0.00023287,2]
[311892060,1705489892305,-5190.51,0.00023287,2]
[311892061,1705489892321,-1373.46,0.00023287,2]
[311892062,1705489892336,-1107.84,0.00023287,2]
[311892063,1705489892353,-500.0,0.00023287,2]
[311892064,1705489892368,-4976.8,0.00023287,2]
[311892065,1705489892383,-2577.68,0.00023287,2]
[311892066,1705489892398,-1821.72,0.00023287,2]
[311892067,1705489892411,-500.0,0.00023287,2]
[311892068,1705489892427,-2636.23,0.00023287,2]
[311892069,1705489892442,-500.0,0.00023287,2]
[311892070,1705489892457,-500.0,0.00023287,2]
[311892071,1705489892472,-795.84,0.00023287,2]
[311892072,1705489892487,-4042.57,0.00023287,2]
[311892073,1705489892500,-500.0,0.00023287,2]
[311892074,1705489892513,-1181.55,0.00023287,2]
[311892075,1705489892529,-500.0,0.00023287,2]
[311892076,1705489892544,-500.0,0.00023287,2]
[311892077,1705489892564,-1662.15,0.00023287,2]
[311892078,1705489892577,-964.47,0.00023287,2]
[311892079,1705489892591,-500.0,0.00023287,2]
[311892080,1705489892605,-1443.1,0.00023287,2]
[311892081,1705489892618,-829.46,0.00023287,2]
[311892082,1705489892632,-500.0,0.00023287,2]
[311892083,1705489892645,-1683.87,0.00023287,2]
[311892084,1705489892659,-1912.07,0.00023287,2]
[311892085,1705489892672,-602.95,0.00023287,2]
[311892086,1705489892685,-2975.27,0.00023287,2]
[311892087,1705489892698,-1794.36,0.00023287,2]
[311892088,1705489892712,-1938.89,0.00023287,2]
[311892089,1705489892725,-3013.34,0.00023287,2]
[311892090,1705489892738,-649.62,0.00023287,2]
[311892091,1705489892751,-8143.8,0.00023287,2]
[311892092,1705489892764,-500.0,0.00023287,2]
[311892093,1705489892778,-509.62,0.00023287,2]
[311892094,1705489892792,-1207.37,0.00023287,2]
[311892095,1705489892806,-1304.2,0.00023287,2]
[311892096,1705489892818,-500.0,0.00023287,2]
[311892097,1705489892832,-1538.7,0.00023287,2]
[311892098,1705489892846,-924.58,0.00023287,2]
[311892099,1705489892860,-2403.64,0.00023287,2]
[311892100,1705489892874,-500.0,0.00023287,2]
[311892101,1705489892888,-500.0,0.00023287,2]
[311892102,1705489892902,-852.81,0.00023287,2]
[311892103,1705489892917,-1937.17,0.00023287,2]
[311892104,1705489892931,-1179.93,0.00023287,2]
[311892105,1705489892945,-1023.73,0.00023287,2]
[311892106,1705489892959,-500.0,0.00023287,2]
[311892107,1705489892973,-2592.46,0.00023287,2]
[311892108,1705489892988,-968.29,0.00023287,2]
[311892109,1705489893002,-3413.16,0.00023287,2]
[311892110,1705489893017,-500.0,0.00023287,2]
[311892111,1705489893032,-500.0,0.00023287,2]
[311892112,1705489893046,-500.0,0.00023287,2]
[311892113,1705489893061,-1297.47,0.00023287,2]
[311892114,1705489893076,-745.84,0.00023287,2]
[311892115,1705489893089,-2908.69,0.00023287,2]
[311892116,1705489893103,-1190.11,0.00023287,2]
[311892117,1705489893116,-815.9,0.00023287,2]
[311892118,1705489893131,-500.0,0.00023287,2]
[311892119,1705489893144,-500.0,0.00023287,2]
[311892120,1705489893157,-8716.14,0.00023287,2]
[311892121,1705489893172,-601.43,0.00023287,2]
[311892122,1705489893186,-3604.29,0.00023287,5]
[311892123,1705489893200,-2488.53,0.00023287,2]
[311892124,1705489893215,-500.0,0.00023287,2]
[311892125,1705489893229,-681.48,0.00023287,2]
[311892126,1705489893244,-1866.72,0.00023287,2]
[311892127,1705489893259,-500.0,0.00023287,2]
[311892128,1705489893274,-571.22,0.00023287,2]
[311892129,1705489893290,-737.47,0.00023287,2]
[311892130,1705489893304,-1014.39,0.00023287,2]
[311892131,1705489893319,-447.87876948,0.00023288,4]
[311892132,1705489893332,-175.40911835,0.00023288,4]
[311892133,1705489893346,-500.0,0.00023288,4]
[311892134,1705489893364,-500.0,0.00023288,4]
[311892135,1705489893378,-500.0,0.00023288,4]
[311892136,1705489893392,-500.0,0.00023288,4]
[311892137,1705489893406,-500.0,0.00023288,4]
[311892138,1705489893420,-500.0,0.00023288,4]
[311892139,1705489893435,-500.0,0.00023288,4]
[311892140,1705489893449,-500.0,0.00023288,4]
[311892141,1705489893463,-500.0,0.00023288,4]
[311892142,1705489893477,-500.0,0.00023288,4]
[311892143,1705489893490,-500.0,0.00023288,4]
[311892144,1705489893504,-500.0,0.00023288,4]
[311892145,1705489893518,-500.0,0.00023288,4]
[311892146,1705489893531,-500.0,0.00023288,4]
[311892147,1705489893544,-500.0,0.00023288,4]
[311892148,1705489893558,-496.85068122,0.00023288,4]
[311892149,1705489893572,-500.0,0.00023288,4]
[311892150,1705489893585,-500.0,0.00023288,4]
[311892151,1705489893600,-500.0,0.00023288,4]
[311892152,1705489893614,-500.0,0.00023288,4]
[311892153,1705489893627,-500.0,0.00023288,4]
[311892154,1705489893641,-500.0,0.00023288,4]
[311892155,1705489893655,-434.02769117,0.00023288,2]
[311892156,1705489893669,-500.0,0.00023288,2]
[311892157,1705489893684,-466.36313734,0.00023288,2]
[311892158,1705489893697,-474.90901989,0.00023288,2]
[311892159,1705489893711,-500.0,0.00023288,4]
[311892160,1705489893725,-451.01917762,0.00023288,2]
[311892161,1705489893739,-500.0,0.00023288,2]
[311892162,1705489893754,-500.0,0.00023288,2]
[311892163,1705489893769,-500.0,0.00023288,2]
[311892164,1705489893778,-500.0,0.00023288,2]
[311892165,1705489893788,-537.52310958,0.00023288,2]
[311892166,1705489893798,-500.0,0.00023288,4]
[311892167,1705489893807,-500.0,0.00023288,4]
[311892168,1705489893817,-499.68506812,0.00023288,4]
[311892169,1705489893826,-500.0,0.00023288,4]
[311892170,1705489893836,-500.0,0.00023288,2]
[311892171,1705489893846,-500.0,0.00023288,2]
[311892172,1705489893855,-500.0,0.00023288,2]
[311892173,1705489894268,-500.0,0.00023288,2]
[311892174,1705489894289,-500.0,0.00023288,2]
[311892175,1705489894326,-500.0,0.00023288,2]
[311892176,1705489894348,-603.09720012,0.00023288,2]
[311892177,1705489894358,-500.0,0.00023288,2]
[311892178,1705489894367,-500.0,0.00023288,2]
[311892179,1705489894377,-500.0,0.00023288,2]
[311892180,1705489894386,-500.0,0.00023288,2]
[311892181,1705489894395,-500.0,0.00023288,2]
[311892182,1705489894404,-500.0,0.00023288,2]
[311892183,1705489894413,-500.0,0.00023288,2]
[311892184,1705489894423,-500.0,0.00023288,2]
[311892185,1705489894433,-500.0,0.00023288,2]
[311892186,1705489894444,-500.0,0.00023288,2]